[Event "FIDE WSTC-50-65 2022"]
[Site "Acqui Terme"]
[Date "2022.06.26"]
[Round "6.4"]
[White "Bellia, Fabrizio"]
[Black "Emms, John M"]
[Result "1/2-1/2"]
[ECO "C54"]
[WhiteElo "2418"]
[BlackElo "2478"]
[Annotator "TA"]
[PlyCount "76"]
[EventDate "2022.06.20"]
[EventType "team-tourn"]
[EventCountry "ITA"]
[SourceTitle "playchess.com"]
[Source "ChessBase"]
[SourceQuality "1"]
[TimeControl "40/5400+30:1800+30"]

{[%evp 18,76,26,8,8,0,11,1,0,0,0,-12,-12,-8,0,0,0,0,0,0,0,0,0,0,0,-17,0,0,10,7,18,17,16,14,19,0,0,0,0,0,8,0,0,0,0,0,0,0,0,0,0,0,0,0,0,0,0,0,0,0,0]} 1. e4 {[%emt 0:01:00]} e5 {[%emt 0:01:00]} 2. Nf3 {[%emt 0:00:00]} Nc6 {[%emt 0:00:30]} 3. Bc4 {[%emt 0:00:00]} Bc5 {[%emt 0:00:30]} 4. c3 {[%emt 0:00:30]} Nf6 {[%emt 0:00:30]} 5. d3 {[%emt 0:00:00]} d6 {[%emt 0:00:30]} 6. O-O {[%emt 0:01:00]} a6 {[%emt 0:01:30]} 7. Bb3 {[%emt 0:00:00]} h6 {[%emt 0:01:30]} 8. Nbd2 {[%emt 0:02:00]} O-O {[%emt 0:00:30]} 9. h3 {[%emt 0:00:30]} Be6 {[%emt 0:02:30]} 10. Re1 {[%emt 0:08:30]} Bxb3 {[%emt 0:06:30] The position is equal. C54: Giuoco Piano: 4 c3 Nf6, main lines with 5 d4 and 5 d3.} 11. Qxb3 {[%emt 0:03:30]} Re8 {[%emt 0:05:30]} 12. Nf1 {[%emt 0:00:30]} ({Don't go for} 12. Qxb7 $2 Na5 13. Qxa8 Qxa8 $19) 12... Qd7 {[%emt 0:02:30]} 13. Ng3 {[%emt 0:04:30]} d5 {[%emt 0:17:30] [#]} 14. a4 $146 {[%emt 0:03:30]} ({Predecessor:} 14. exd5 Nxd5 15. Ne4 Bf8 16. Bd2 b5 17. a4 b4 18. a5 Rab8 19. Qc4 Rb5 20. Ng3 bxc3 21. bxc3 {0-1 (33) Amin,B (2709)-Swiercz,D (2655) Astana 2019}) 14... b6 {[%emt 0:10:30]} 15. Bd2 {[%emt 0:07:30]} Rad8 {[%emt 0:15:30]} 16. Rad1 {[%emt 0:04:30]} Qe6 {[%emt 0:07:30]} 17. Bc1 {[%emt 0:09:30]} dxe4 {[%emt 0:04:30]} 18. Qxe6 {[%emt 0:00:00]} Rxe6 {[%emt 0:00:30]} 19. dxe4 {[%emt 0:00:00]} a5 {[%emt 0:00:31]} 20. Rxd8+ {[%emt 0:04:30]} Nxd8 {[%emt 0:00:29]} 21. Nd2 {[%emt 0:00:30]} Nb7 {[%emt 0:01:09]} 22. Nc4 {[%emt 0:05:30]} Nd6 {[%emt 0:03:47]} 23. Nxd6 {[%emt 0:01:30]} Rxd6 {[%emt 0:00:12]} 24. Kf1 {[%emt 0:01:30]} Rd7 {[%emt 0:02:03]} 25. f3 {[%emt 0:01:30]} h5 {[%emt 0:02:03]} 26. h4 {[%emt 0:06:30]} g6 {[%emt 0:00:34]} 27. Ke2 {[%emt 0:00:30]} Ne8 {[%emt 0:02:16]} 28. Nf1 {[%emt 0:00:30]} f6 {[%emt 0:03:13]} 29. Ne3 {[%emt 0:01:30]} Kf7 {[%emt 0:00:30]} 30. Nc4 {[%emt 0:09:30]} Nd6 {[%emt 0:01:22]} 31. Nxd6+ {[%emt 0:08:14]} Rxd6 {[%emt 0:00:24]} 32. Be3 {[%emt 0:00:22]} Bxe3 {[%emt 0:01:17]} 33. Kxe3 $11 {[%emt 0:00:24][%mdl 4096] Endgame KR-KR} Ke6 {[%emt 0:01:49]} 34. g4 {[%emt 0:02:50]} Rc6 {[%emt 0:00:43]} 35. Kd3 {[%emt 0:00:43]} Rd6+ {[%emt 0:00:10]} 36. Ke3 {[%emt 0:00:12]} Rc6 {[%emt 0:00:07]} 37. Kd3 {[%emt 0:00:13]} Rd6+ {[%emt 0:00:11]} 38. Ke3 {[%emt 0:00:09]} Rc6 {[%emt 0:01:09] A balanced but interesting game.  Weighted Error Value: White=0.03 (flawless) /Black=0.02 (flawless)} 1/2-1/2

[Event "FIDE WSTC-50-65 2022"]
[Site "Acqui Terme"]
[Date "2022.06.26"]
[Round "6.5"]
[White "Hjartarson, Johann"]
[Black "Kaidanov, Gregory"]
[Result "1/2-1/2"]
[ECO "C48"]
[WhiteElo "2472"]
[BlackElo "2556"]
[Annotator "TA"]
[PlyCount "53"]
[EventDate "2022.06.20"]
[EventType "team-tourn"]
[EventCountry "ITA"]
[SourceTitle "playchess.com"]
[Source "ChessBase"]
[SourceQuality "1"]
[TimeControl "40/5400+30:1800+30"]

{[%evp 9,53,0,18,0,0,0,0,0,-7,-3,-14,-8,-15,-16,-10,-8,-28,-63,-53,-43,-32,-32,-32,-29,-25,-29,-14,-16,-21,-30,-19,-54,-30,-33,-30,-33,-22,-24,-18,-18,-24,-24,0,-23,0,-22]} 1. e4 {[%emt 0:01:00]} e5 {[%emt 0:01:00]} 2. Nf3 {[%emt 0:00:00]} Nc6 {[%emt 0:00:00]} 3. Nc3 {[%emt 0:00:00]} Nf6 {[%emt 0:00:00]} 4. Bb5 {[%emt 0:00:30]} Bc5 {[%emt 0:00:30]} 5. d3 {[%emt 0:03:30]} d6 {[%emt 0:06:30]} 6. Be3 {[%emt 0:04:30] C48: Four Knights: 4 Bb5, replies other than 4...Bb4.} Bb6 {[%emt 0:05:30]} 7. h3 {[%emt 0:14:30]} h6 {[%emt 0:06:30]} 8. Bxc6+ {[%emt 0:03:30]} bxc6 {[%emt 0:00:30]} 9. O-O {[%emt 0:00:30]} O-O {[%emt 0:00:30]} 10. Re1 {[%emt 0:03:30]} Re8 {[%emt 0:01:30]} 11. a3 {[%emt 0:02:30] [#]} Nd7 $146 {[%emt 0:02:30][%cal Bf6d7,Bd7e5,Be5f3][%mdl 32]} ({Predecessor:} 11... d5 12. Bxb6 dxe4 13. Bxc7 Qxc7 14. Nxe4 Nd5 15. c4 Nf4 16. d4 f5 17. Nc3 e4 {0-1 (27) Coiffard,M-Sogliuzzo,P Montlucon 1997}) 12. d4 {[%emt 0:10:30]} exd4 {[%emt 0:01:30]} 13. Nxd4 {[%emt 0:00:30]} Ne5 {[%emt 0:01:30]} 14. Qe2 {[%emt 0:15:30]} Qh4 {[%emt 0:11:30][%cal Od6d5]} 15. Nf3 {[%emt 0:02:30]} Nxf3+ {[%emt 0:01:30]} 16. Qxf3 {[%emt 0:00:30]} Re6 {[%emt 0:02:30]} 17. Kh2 {[%emt 0:00:30]} Bd7 {[%emt 0:04:30]} 18. Qg3 {[%emt 0:04:30]} Qe7 {[%emt 0:04:30]} 19. Rad1 {[%emt 0:04:30]} Re8 {[%emt 0:01:30]} 20. Rd3 {[%emt 0:00:30]} Bc8 {[%emt 0:02:30]} (20... f5 $5 {[%cal Rf5e4]}) 21. Bxb6 {[%emt 0:02:30]} axb6 {[%emt 0:00:30]} 22. Rde3 {[%emt 0:02:30]} Bb7 {[%emt 0:04:30]} 23. a4 {[%emt 0:01:30]} Rg6 {[%emt 0:04:30]} 24. Qf4 {[%emt 0:01:30]} Rf6 {[%emt 0:00:30]} 25. Qg3 {[%emt 0:00:00][%cal Oc3d5] [#] Strongly threatening Nd5!} Rg6 {[%emt 0:02:30]} 26. Qf4 {[%emt 0:00:00]} Rf6 {[%emt 0:02:30]} 27. Qg3 {[%emt 0:00:30] Weighted Error Value: White=0.04 (flawless) /Black=0.06 (flawless)} 1/2-1/2

[Event "FIDE WSTC-50-65 2022"]
[Site "Acqui Terme"]
[Date "2022.06.26"]
[Round "6.6"]
[White "Shabalov, Alexander"]
[Black "Petursson, Margeir"]
[Result "1/2-1/2"]
[ECO "B36"]
[WhiteElo "2504"]
[BlackElo "2450"]
[Annotator "TA"]
[PlyCount "63"]
[EventDate "2022.06.20"]
[EventType "team-tourn"]
[EventCountry "ITA"]
[SourceTitle "playchess.com"]
[Source "ChessBase"]
[SourceQuality "1"]
[TimeControl "40/5400+30:1800+30"]

{[%evp 18,63,43,36,58,37,34,20,27,19,68,39,66,50,72,80,77,100,106,103,108,105,100,94,97,104,107,46,264,231,341,314,335,322,323,326,354,277,336,12,6,0,0,0,0,0,0,-1]} 1. e4 {[%emt 0:01:00]} c5 {[%emt 0:01:00]} 2. Nf3 {[%emt 0:00:00]} g6 {[%emt 0:00:30]} 3. d4 {[%emt 0:00:00]} cxd4 {[%emt 0:00:00]} 4. Nxd4 {[%emt 0:00:00]} Nc6 {[%emt 0:01:00]} 5. c4 {[%emt 0:01:00]} Nf6 {[%emt 0:00:30]} 6. Nc3 {[%emt 0:00:00]} Nxd4 {[%emt 0:00:30]} 7. Qxd4 {[%emt 0:00:00]} d6 {[%emt 0:00:00]} 8. Be3 {[%emt 0:00:30]} Bg7 {[%emt 0:00:00]} 9. f3 {[%emt 0:00:30]} O-O {[%emt 0:00:30]} 10. Qd2 {[%emt 0:00:30]} a5 {[%emt 0:02:30] B36: Sicilian: Maroczy Bind: Gurgenidze System.} 11. Rc1 {[%emt 0:02:30]} a4 {[%emt 0:00:30]} 12. Be2 {[%emt 0:00:00]} Qa5 {[%emt 0:03:30]} 13. Kf2 {[%emt 0:00:00]} Bd7 {[%emt 0:34:30] [#]} (13... Be6 $11) 14. g4 $5 $146 {[%emt 0:02:30][%mdl 8] An interesting novelty.} ({Predecessor:} 14. Rhd1 Rfd8 15. Kg1 Be6 16. Nd5 Qxd2 17. Rxd2 Nxd5 18. cxd5 Bd7 19. Rc7 b5 20. Rdc2 {½-½ (43) Sjugirov,S (2654)-Gordievsky,D (2615) Sochi 2018}) 14... Bc6 {[%emt 0:02:30]} 15. Nd5 {[%emt 0:10:30]} e6 {[%emt 0:13:30]} 16. Ne7+ {[%emt 0:20:30]} Kh8 {[%emt 0:00:00][%cal Of6e4]} 17. Qxa5 {[%emt 0:00:30]} Rxa5 {[%emt 0:00:00] [#]} 18. Rhd1 $1 {[%emt 0:14:30]} Ne8 {[%emt 0:03:30]} 19. c5 {[%emt 0:05:30]} d5 {[%emt 0:02:30]} 20. exd5 {[%emt 0:10:30] 0x0.00207bd0d5d2dp-1022s more active pieces. The black rooks are badly placed.} exd5 {[%emt 0:00:30]} 21. Nxd5 {[%emt 0:00:30]} (21. Nxc6 bxc6 22. Rc2 Nc7 $15) 21... Bxb2 {[%emt 0:02:30]} 22. Rb1 {[%emt 0:02:30]} (22. Rc4 $16) 22... Bg7 $2 {[%emt 0:08:30]} (22... Ba3 $14) 23. Rb6 {[%emt 0:07:30]} f5 {[%emt 0:02:30]} (23... Bxd5 $142 24. Rxd5 Nc7) 24. gxf5 $18 {[%emt 0:01:30]} gxf5 {[%emt 0:01:30]} (24... Rxf5 $2 25. Ne7 Rf8 26. Nxc6 bxc6 27. Rd8) 25. Ne7 {[%emt 0:07:07]} f4 {[%emt 0:06:43] [#]} 26. Bc1 {[%emt 0:04:57]} (26. Bd4 Bxd4+ 27. Rxd4 Rxc5 $16) 26... Rxc5 {[%emt 0:05:31]} 27. Nxc6 {[%emt 0:01:46]} Rf6 {[%emt 0:02:33]} 28. Rd8 $2 {[%emt 0:03:00]} ({Don't take} 28. Rxb7 $6 Rfxc6 29. Rb8 Rc8 30. Rxc8 (30. Bxf4 Rxb8 31. Bxb8 Bf6 $18) 30... Rxc8 31. Bxf4 Nf6 $18) (28. Ba3 $18 Rc3 29. Rd8 (29. Rxb7 Rxa3 30. Rb8 Rf8 $16) 29... Rxa3 30. Rxe8+ Rf8 31. Rxf8+ Bxf8 32. Rxb7) 28... Rxc1 $11 {[%emt 0:02:47][%mdl 64] Pin. The position is equal.} 29. Rxe8+ {[%emt 0:00:21]} Rf8 $1 {[%emt 0:00:06]} 30. Rxf8+ {[%emt 0:03:05]} Bxf8 {[%emt 0:00:07]} 31. Rxb7 {[%emt 0:00:16] Strongly threatening Ne7.} Rxc6 {[%emt 0:00:18]} 32. Bd3 {Inhibits Rc2+.  Weighted Error Value: White=0.27 (precise) /Black=0.34} 1/2-1/2

[Event "FIDE WSTC-50-65 2022"]
[Site "Acqui Terme"]
[Date "2022.06.26"]
[Round "6.7"]
[White "Arnason, Jon L"]
[Black "Novikov, Igor"]
[Result "1/2-1/2"]
[ECO "B80"]
[WhiteElo "2412"]
[BlackElo "2551"]
[Annotator "TA"]
[PlyCount "66"]
[EventDate "2022.06.20"]
[EventType "team-tourn"]
[EventCountry "ITA"]
[SourceTitle "playchess.com"]
[Source "ChessBase"]
[SourceQuality "1"]
[TimeControl "40/5400+30:1800+30"]

{[%evp 18,66,32,-10,0,-10,-17,-41,0,-43,0,0,0,0,0,0,26,-231,-231,-235,-207,-212,-17,-24,0,0,0,0,0,0,0,0,0,0,0,0,0,0,0,0,0,0,0,0,0,0,0,0,0,0,0]} 1. e4 {[%emt 0:01:00] Ftacnik,L} c5 {[%emt 0:01:00]} 2. Nf3 {[%emt 0:00:00]} d6 {[%emt 0:00:00]} 3. d4 {[%emt 0:00:00]} cxd4 {[%emt 0:00:00]} 4. Nxd4 {[%emt 0:00:30]} Nf6 {[%emt 0:00:00]} 5. Nc3 {[%emt 0:00:00]} a6 {[%emt 0:00:00]} 6. Be3 {[%emt 0:00:00]} e6 {[%emt 0:00:30]} 7. f3 {[%emt 0:00:30]} b5 {[%emt 0:00:30][%cal Bb7b5,Bb5b4][%mdl 32]} 8. Qd2 {[%emt 0:00:30]} Nbd7 {[%emt 0:01:30]} 9. g4 {[%emt 0:00:30]} h6 {[%emt 0:04:30]} 10. h4 {[%emt 0:01:30]} b4 {[%emt 0:02:30] B80: Sicilian Scheveningen: 6 g3 and 6 Be3, including English Attack.} 11. Na4 {[%emt 0:06:30]} d5 {[%emt 0:03:30][%cal Bd6d5,Bd5e4,Be4e3][%mdl 32]} 12. Bh3 {[%emt 0:20:30]} dxe4 {[%emt 0:12:30] Black is slightly better.} 13. g5 {[%emt 0:01:30]} hxg5 {[%emt 0:10:30]} (13... Nd5 $5 {[%cal Rd7e5]} 14. g6 Ne5 15. gxf7+ Kxf7 16. fxe4 Qxh4+ 17. Qf2+ Qxf2+ 18. Bxf2 Nf4 $11) 14. hxg5 {[%emt 0:00:30]} Nd5 {[%emt 0:01:30] Threatens to win with ...Ne5.} 15. g6 $1 {[%emt 0:12:30] And now gxf7+ would win.} Ne5 {[%emt 0:04:30]} (15... fxg6 16. O-O-O Ne5 17. fxe4 Nxe3 18. Qxe3 $18) 16. gxf7+ {[%emt 0:01:30]} Kxf7 {[%emt 0:02:30] [#]} 17. Bg5 $146 {[%emt 0:05:30][%mdl 8192] [#]} (17. fxe4 $11 Nxe3 18. Qxe3) ({Predecessor:} 17. fxe4 Nxe3 18. Qxe3 Qh4+ 19. Ke2 Qh5+ 20. Kf2 Ke8 21. Bxe6 Qxh1 22. Rxh1 Rxh1 23. Qg3 {1-0 (31) Gagunashvili,M (2580)-Arlandi,E (2456) Istanbul 2003 CBM 096 [Ftacnik,L]}) 17... e3 $1 $19 {[%emt 0:07:30]} 18. Qg2 {[%emt 0:10:30]} Be7 {[%emt 0:02:30]} 19. f4 {[%emt 0:02:30] [#]} Bxg5 $2 {[%emt 0:21:30]} (19... Nxf4 $1 $19 {[%mdl 512]} 20. Bxf4 {[#]} Qxd4 $1) 20. fxg5 $11 {[%emt 0:00:30] [#] Strongly threatening 0-0-0.} Nf4 $1 {[%emt 0:09:19][%csl LRd4,LRg2]} 21. O-O $36 {[%emt 0:09:30][%mdl 2048] White fights for an advantage. The position is equal.} Neg6 {[%emt 0:03:21]} 22. Bxe6+ {[%emt 0:09:15]} (22. Qxa8 $2 {perishes.} Rxh3 23. Rxf4+ Nxf4 $19) 22... Bxe6 {[%emt 0:01:41]} 23. Nxe6 {[%emt 0:00:08]} Kxe6 {[%emt 0:00:50]} 24. Rxf4 {[%emt 0:03:14][%mdl 64] Decoy. The board is on fire.} Nxf4 {[%emt 0:00:13]} 25. Qe4+ {[%emt 0:00:09]} Kf7 {[%emt 0:00:07][%cal Be6f7,Bf7g6,Bg6h5,Bh5g5][%mdl 32]} 26. Qxf4+ {[%emt 0:02:56]} Kg6 {[%emt 0:00:32]} (26... Kg8 $5 27. Qc4+ Kh7 28. Qh4+ Kg8 29. Qc4+ Kh7 30. Qh4+ Kg8 31. Qc4+ $11) 27. Qe4+ {[%emt 0:00:11]} Kh5 {[%emt 0:00:57]} 28. Qf3+ {[%emt 0:00:47]} Kxg5 {[%emt 0:00:42]} 29. Qxe3+ {[%emt 0:01:55]} Kh5 {[%emt 0:00:19] aiming for ...Qh4.} (29... Kg6 $5 30. Qe4+ Kh6 31. Qh1+ Kg6 32. Qe4+ Kh6 33. Qh1+ Kg6 34. Qe4+ $11) 30. Qf3+ {[%emt 0:00:29]} Kh6 {[%emt 0:00:26]} (30... Kg6 $5 31. Qe4+ Kh5 32. Qf3+ Kg6 33. Qe4+ Kh5 34. Qf3+ $11) 31. Qh1+ {[%emt 0:00:56]} Kg5 {[%emt 0:00:28] ( -> ...Qd4+)} (31... Kg6 $5 32. Qe4+ Kh6 33. Qh1+ Kg6 34. Qe4+ Kh6 35. Qh1+ $11) 32. Qg2+ {[%emt 0:00:07]} Kh6 {[%emt 0:00:52] ...Qd4+ is the strong threat.} (32... Kh5 $5 33. Qf3+ Kg6 34. Qe4+ Kh6 35. Qh1+ Kg6 36. Qe4+ Kh6 37. Qh1+ $11) 33. Qh1+ {[%emt 0:00:41]} Kg5 {[%emt 0:00:12] Weighted Error Value: White=0.28 (precise) /Black=0.16 (very precise)} (33... Kg6 $5 34. Qe4+ Kh6 35. Qh1+ $11) 1/2-1/2

[Event "FIDE WSTC-50-65 2022"]
[Site "Acqui Terme"]
[Date "2022.06.26"]
[Round "6.8"]
[White "Ehlvest, Jaan"]
[Black "Thorhallsson, Throstur"]
[Result "1-0"]
[ECO "B84"]
[WhiteElo "2517"]
[BlackElo "2410"]
[Annotator "TA"]
[PlyCount "57"]
[EventDate "2022.06.20"]
[EventType "team-tourn"]
[EventCountry "ITA"]
[SourceTitle "playchess.com"]
[Source "ChessBase"]
[SourceQuality "1"]
[TimeControl "40/5400+30:1800+30"]

{[%evp 19,57,56,65,59,79,76,80,85,70,83,81,73,85,96,100,86,155,160,146,154,146,142,139,133,207,215,277,270,480,427,550,550,551,545,897,887,1058,1044,1266,1209]} 1. e4 {[%emt 0:01:00]} c5 {[%emt 0:01:00]} 2. Nf3 {[%emt 0:00:00]} d6 {[%emt 0:00:30]} 3. d4 {[%emt 0:00:00]} cxd4 {[%emt 0:00:00]} 4. Nxd4 {[%emt 0:00:00]} Nf6 {[%emt 0:00:00]} 5. Nc3 {[%emt 0:00:00]} Nc6 {[%emt 0:00:30]} 6. Be2 {[%emt 0:02:30]} e6 {[%emt 0:01:30]} 7. Be3 {[%emt 0:01:30]} Be7 {[%emt 0:00:30]} 8. f4 {[%emt 0:02:30]} a6 {[%emt 0:02:30]} 9. Qd2 {[%emt 0:03:30] 9.g4 is a critical line.} Qc7 {[%emt 0:06:30]} 10. O-O-O {[%emt 0:11:30]} O-O {[%emt 0:14:30]} 11. g4 {[%emt 0:02:30] B84: Sicilian Scheveningen: 6 Be2 a6, lines without early Be3.} d5 {[%emt 0:07:30]} 12. exd5 $1 {[%emt 0:17:30]} Nxd5 {[%emt 0:02:30]} 13. Nxd5 {[%emt 0:00:30] White is better.} exd5 {[%emt 0:00:00]} 14. Kb1 {[%emt 0:04:30]} Bd7 {[%emt 0:09:00]} 15. Bf3 {[%emt 0:07:30]} Rad8 {[%emt 0:03:30]} 16. h4 {[%emt 0:06:30][%cal Bh2h4,Bh4h5,Bh5h6][%mdl 32]} Rfe8 {[%emt 0:05:30]} 17. h5 {[%emt 0:01:30] [#]} Bc8 $146 {[%emt 0:12:30]} (17... Bc5 $142) ({Predecessor:} 17... Na5 18. b3 Ba3 19. Rhe1 Rc8 20. h6 gxh6 21. Bxd5 Bxg4 22. Rg1 h5 23. Nf5 Kf8 {½-½ (46) Areshchenko,A (2678)-Oleksienko,M (2615) Rivne 2016}) 18. h6 $16 {[%emt 0:09:30] Hoping for hxg7.} g6 {[%emt 0:01:30]} 19. Nxc6 {[%emt 0:07:30]} bxc6 {[%emt 0:05:30] [#]} 20. Qc3 $1 {[%emt 0:00:30][%csl Gh6][%cal Rc3g7]} Bf8 {[%emt 0:02:30] [#] Against Qg7+} 21. f5 $1 $36 {[%emt 0:00:30][%mdl 2048] Black is under strong pressure. White is more active.} ({Don't play} 21. Bc5 $6 Qxf4 22. Bxf8 d4 23. Qxc6 Kxf8 $11) 21... Qd6 {[%emt 0:07:03]} (21... Qe5 $16 22. Bd4 Qd6) 22. Bg5 $18 {[%emt 0:01:58]} d4 {[%emt 0:08:37]} 23. Qxc6 {[%emt 0:02:07]} Rd7 $2 {[%emt 0:01:31]} (23... Qxc6 24. Bxc6 Bd7) 24. Rhe1 {[%emt 0:03:57] White is clearly winning.} Rxe1 {[%emt 0:00:39]} 25. Rxe1 {[%emt 0:00:18] And now Re8 would win.} Qxc6 {[%emt 0:03:12]} 26. Bxc6 {[%emt 0:00:13] aiming for Re8.} Rd6 {[%emt 0:00:32] [#]} 27. Re8 $1 {[%emt 0:05:28][%cal Og5e7] Intending Be7! and mate.} f6 {[%emt 0:00:29] [#]} (27... gxf5 28. Be7) 28. Ba4 $1 {[%emt 0:01:27] Threatening mate with Bb3+.} Bb7 {[%emt 0:03:45]} (28... Kf7 29. Bf4) 29. Bf4 {[%emt 0:00:47] Weighted Error Value: White=0.04 (flawless) /Black=0.46} 1-0

[Event "FIDE WSTC-50-65 2022"]
[Site "Acqui Terme"]
[Date "2022.06.26"]
[Round "6.9"]
[White "Lederman, Leon"]
[Black "Nunn, John D M"]
[Result "0-1"]
[ECO "B93"]
[WhiteElo "2205"]
[BlackElo "2568"]
[Annotator "TA"]
[PlyCount "98"]
[EventDate "2022.06.20"]
[EventType "team-tourn"]
[EventCountry "ITA"]
[SourceTitle "playchess.com"]
[Source "ChessBase"]
[SourceQuality "1"]
[TimeControl "40/5400+30:1800+30"]

{[%evp 19,98,-12,-2,-2,0,-52,-61,-56,-54,-54,-56,-146,-128,-121,-124,-108,-106,-89,-27,-69,-40,-42,308,-79,-75,-254,-116,-121,-117,-111,-108,-133,-94,-85,-80,-122,-105,-93,-100,-122,-125,-134,-120,-145,-154,-140,-89,-132,-118,-170,-161,-192,-187,-235,-241,-211,-218,-292,-285,-277,-118,-336,-312,-306,-299,-435,-433,-455,-458,-431,-423,-433,-421,-475,-479,-558,-559,-550,-533,-573,-376]} 1. e4 {[%emt 0:01:00]} c5 {[%emt 0:01:00]} 2. Nf3 {[%emt 0:00:00]} d6 {[%emt 0:00:00]} 3. d4 {[%emt 0:00:00]} Nf6 {[%emt 0:00:00]} 4. Nc3 {[%emt 0:00:00]} cxd4 {[%emt 0:00:00]} 5. Nxd4 {[%emt 0:00:00]} a6 {[%emt 0:00:00]} 6. f4 {[%emt 0:00:30]} Nbd7 {[%emt 0:00:30]} 7. Bd3 {[%emt 0:00:00]} g6 {[%emt 0:00:30]} 8. a4 {[%emt 0:02:00]} Bg7 {[%emt 0:00:30]} 9. Nf3 {[%emt 0:00:00]} O-O {[%emt 0:00:30]} 10. O-O {[%emt 0:00:00]} Nc5 {[%emt 0:00:30]} 11. Qe1 {[%emt 0:00:30] B93: Sicilian Najdorf: 6 f4.} Bg4 {[%emt 0:01:30] [#]} 12. Qh4 $146 {[%emt 0:03:30]} (12. Be3 $11) ({Predecessor:} 12. Be3 Bxf3 13. Rxf3 Rc8 14. h3 Qb6 15. Rb1 Nfd7 16. Nd5 Qd8 17. Qb4 e6 18. Nc3 Qb6 {0-1 (63) Blair,M (1921)-Broniek,M (2293) LSS email 2014}) 12... Bxf3 $15 {[%emt 0:05:30]} 13. Rxf3 {[%emt 0:00:30] Black is slightly better.} e6 {[%emt 0:00:30]} 14. f5 {[%emt 0:05:30]} Nfd7 {[%emt 0:08:30][%cal Bf6d7,Bd7e5,Be5d3][%mdl 32]} 15. Qf4 {[%emt 0:12:30]} (15. Qxd8 $15 Rfxd8 16. Bg5) 15... Ne5 $17 {[%emt 0:06:30]} 16. Rh3 {[%emt 0:01:30]} Nexd3 {[%emt 0:09:30]} 17. cxd3 {[%emt 0:00:30]} Nb3 {[%emt 0:00:30]} 18. Rb1 {[%emt 0:08:30]} Nxc1 {[%emt 0:03:30]} ({Black should try} 18... d5 $1 $17 {And now ...Rc8 would win.} 19. exd5 Nxc1 20. fxe6 (20. Rxc1 Qb6+ 21. Kh1 exf5 $17) 20... fxe6 $1 21. Qxc1 exd5) 19. Qxc1 {[%emt 0:00:30]} Qb6+ {[%emt 0:00:30]} 20. Kh1 {[%emt 0:00:30][%cal Of5f6]} Rac8 $2 {[%emt 0:01:30][%mdl 8192]} (20... Rfc8 $15 {stays ahead.}) 21. Qe1 $2 {[%emt 0:00:30]} ({White must play} 21. f6 $1 $18 h5 22. fxg7 Kxg7 23. Rf3) 21... Rfe8 {[%emt 0:02:30]} (21... gxf5 22. exf5 Qd4 23. fxe6 $14) 22. Qh4 $2 {[%emt 0:19:30]} (22. Qf1 $17) 22... h6 {[%emt 0:09:30]} (22... gxf5 23. exf5 exf5 24. Qxh7+ Kf8 25. Rf1 Qxb2 26. Qxf5 $1 $16) (22... Rxc3 $19 23. f6 Bxf6 24. Qxf6 Qxb2 $1) 23. fxg6 {[%emt 0:06:30]} fxg6 {[%emt 0:00:30][%cal Bf7g6,Bg6g5,Bg5h4][%mdl 32] Hoping for ...Rxc3.} 24. Ne2 {[%emt 0:00:30][%cal Bc3e2,Be2g1,Bg1f3][%mdl 32]} Rc2 {[%emt 0:11:30]} 25. Qg4 {[%emt 0:04:30]} Qf2 {[%emt 0:07:30]} (25... g5 26. b3 $15) 26. Ng1 {[%emt 0:04:30]} (26. Qxg6 $2 Rxe2 $1 27. Qg3 (27. Qxe8+ $2 Kh7 $19) 27... Rf8 28. Qxf2 Rfxf2 $19) 26... g5 $40 {[%emt 0:08:30][%mdl 128] White is in trouble. Black is much more active.} 27. Rf3 {[%emt 0:03:30] [#]} Qh4 {[%emt 0:00:30]} 28. Qxh4 {[%emt 0:01:30]} gxh4 {[%emt 0:00:00]} 29. b3 {[%emt 0:01:30]} Rec8 {[%emt 0:01:00]} 30. Rff1 {[%emt 0:03:30] Against Rc1} Rd2 {[%emt 0:03:01]} 31. Nf3 {[%emt 0:03:33]} Rxd3 {[%emt 0:00:16]} 32. Nxh4 {[%emt 0:00:12]} Rcc3 {[%emt 0:00:19]} ({Better is} 32... Re3 33. Rbe1 Rcc3) 33. Ng6 {[%emt 0:02:24]} Rd4 {[%emt 0:06:38]} 34. Rfe1 {[%emt 0:05:54]} (34. g3 $17) 34... Rb4 {[%emt 0:00:57]} 35. Rbd1 {[%emt 0:03:05]} Rcxb3 {[%emt 0:00:33]} (35... Rbxb3 36. Rxd6 Re3 37. Rc1 $17) 36. Nf4 {[%emt 0:01:46]} (36. Rxd6 Kf7 37. Nf4 Be5 $19) (36. a5 {was called for.}) 36... Bc3 $19 {[%emt 0:04:54]} ({Inferior is} 36... Rxa4 37. Nxe6 Be5 38. Rf1) 37. Rf1 {[%emt 0:01:25]} Rxe4 {[%emt 0:00:08]} 38. Rf3 {[%emt 0:02:48]} Ra3 {[%emt 0:01:14]} ({Don't blunder} 38... Rxa4 $2 39. g3 $19) 39. g3 {[%emt 0:02:25]} Bb2 {[%emt 0:04:20]} ({And not} 39... Rexa4 40. Rxd6 Be5 41. Rd8+ Kf7 42. Rd7+ Ke8 43. Rxa3 Rxa3 44. Rxb7 $17) (39... Bb4 $19 {has better winning chances.} 40. Rxa3 Bxa3) 40. Rf2 {[%emt 0:00:00]} (40. Kg2 $17) 40... Ra1 {[%emt 0:00:00]} 41. Rxa1 {[%emt 0:03:58]} Bxa1 {[%emt 0:00:40][%mdl 4096] Endgame KRB-KRN} 42. Rc2 {[%emt 0:00:30]} (42. Ra2 $142 Bc3 43. Kg2) 42... e5 {[%emt 0:03:30] Black is clearly winning.} 43. Ne6 {[%emt 0:01:30]} Kf7 {[%emt 0:03:30]} 44. Nd8+ {[%emt 0:01:30]} Ke7 {[%emt 0:00:00]} 45. Nxb7 {[%emt 0:00:00]} Kd7 {[%emt 0:00:00] Prevents Rc7+.} 46. Na5 {[%emt 0:02:00]} Rxa4 {[%emt 0:00:30]} 47. Nc6 {[%emt 0:00:30]} a5 {[%emt 0:00:30]} 48. Kg2 {[%emt 0:00:30]} Ra3 {[%emt 0:01:30]} 49. g4 {[%emt 0:00:30]} Rc3 {[%emt 0:01:30] Weighted Error Value: White=0.49/Black=0.32} 0-1